bitfinex-derivatives/quotes_ETHF0:USTF0_20251203
["timestamp","ask_amount","ask_price","bid_price","bid_amount"]
[1764721204827,1.525,3000.8,3000.7,2.54718286]
[1764721205124,1.525,3000.8,3000.7,0.00380021]
[1764721209527,1.525,2999.9,2999.8,3.45220265]
[1764721209724,1.525,2999.9,2999.5,6.07768003]
[1764721209725,1.525,2999.8,2999.7,0.749]
[1764721210124,1.525,2999.6,2999.5,6.49338265]
[1764721210428,1.525,2999.6,2999.5,3.95928759]
[1764721211429,1.525,2999.6,2999.5,0.75148759]
[1764721211826,1.525,2999.6,2999.5,0.00248759]
[1764721213321,4.7328,2999.6,2999.5,0.00248759]
[1764721213831,1.525,2999.4,2999.3,0.00499667]
[1764721214031,1.525,2999.4,2999.3,0.75399667]
[1764721214427,1.525,2999.4,2999.3,1.49619667]
[1764721214629,0.76869667,2999.8,2999.7,1.4912]
[1764721214934,1.52999667,2999.8,2999.7,1.4912]
[1764721215429,0.76869667,2999.8,2999.7,1.4912]
[1764721216232,0.00499667,2999.8,2999.7,1.4912]
[1764721217433,1.52999667,2999.8,2999.7,1.4912]
[1764721217931,0.76869667,2999.8,2999.7,1.4912]
[1764721218430,0.00499667,2999.8,2999.7,1.4912]
[1764721219234,0.76869667,2999.8,2999.7,1.4912]
[1764721219938,1.52999667,2999.8,2999.7,1.4912]
[1764721222130,1.52999667,2999.8,2999.7,0.749]
[1764721222333,1.52999667,2999.8,2999.7,1.4912]
[1764721222629,0.00499667,2999.8,2999.7,1.4912]
[1764721223325,0.00499667,2999.8,2999.7,1.65783]
[1764721223730,3.2078,3000.2,3000.1,1.4912]
[1764721223929,1.9924,3000.5,3000.4,0.749]
[1764721224638,1.525,3000.5,3000.4,0.749]
[1764721225029,1.9924,3000.5,3000.4,0.749]
[1764721225537,1.525,3000.2,3000.1,0.1666]
[1764721225731,0.4674,3000.5,2999.6,4.699]
[1764721225732,0.7637,2999.7,2999.6,4.699]
[1764721228638,1.525,2999.6,2999.5,0.749]
[1764721228840,1.525,2999.4,2999.3,3.21708729]
[1764721229029,1.525,2999.4,2999.3,3.96608729]
[1764721229230,1.525,2999.4,2999.3,4.70828729]
[1764721229430,0.7637,2999.4,2999.3,4.70828729]
[1764721229837,1.525,2999.4,2999.3,3.96608729]
[1764721230526,1.525,2999.4,2999.3,4.13273729]
[1764721230727,1.525,2999.4,2999.3,0.00928729]
[1764721232539,1.525,2999.4,2999.3,0.75828729]
[1764721233726,1.525,2999.4,2999.3,0.00928729]
[1764721234340,1.5547,2998.9,2998.8,1.79438265]
[1764721234528,1.5547,2998.8,2998.7,6.49868265]
[1764721234733,1.5547,2998.5,2998.4,4.1179]
[1764721234938,2.0077,2998.5,2998.4,4.1179]
[1764721235133,2.0077,2998.5,2998.4,4.8874]
[1764721235329,2.01007154,2998.5,2998.4,4.89137802]
[1764721235535,1.55707154,2998.5,2998.4,4.89137802]
[1764721236746,0.00237154,2998.5,2998.4,4.89137802]
[1764721238444,2.00017154,2998.5,2998.4,3.21177802]
[1764721238636,5.20797154,2998.5,2998.4,0.00397802]
[1764721238835,1.5448,2998.3,2998.2,0.00499667]
[1764721239235,1.5448,2998.3,2998.2,1.56229667]
[1764721239739,1.5448,2998.3,2998.2,1.56588872]
[1764721240340,0.7798,2998.3,2998.2,1.56588872]
[1764721240547,1.54717154,2998.5,2998.4,1.5573]
[1764721241350,1.54717154,2998.5,2998.2,1.56588872]
[1764721241351,1.5448,2998.3,2998.2,1.56588872]
[1764721242045,2.00017154,2998.5,2998.4,1.5573]
[1764721245346,1.54717154,2998.5,2998.4,1.5573]
[1764721246153,1.5448,2997.6,2997.5,4.7651]
[1764721246548,0.7798,2997.6,2997.5,5.2156]
[1764721246748,0.453,2998.0,2997.5,5.38235]
[1764721246942,1.9978,2998.0,2997.9,1.5573]
[1764721247147,1.9978,2998.0,2997.9,1.56084296]
[1764721247350,1.9978,2998.0,2997.9,0.00354296]
[1764721248052,1.9978,2998.0,2997.9,0.79134296]
[1764721248550,0.45537154,2998.5,2997.9,1.56084296]
[1764721248753,2.00017154,2998.5,2998.4,1.5573]
[1764721249241,1.54717154,2998.5,2998.4,1.5573]
[1764721249443,0.00237154,2998.5,2998.4,1.5573]
[1764721249853,0.00237154,2998.5,2998.4,1.724]
[1764721250647,0.00237154,2998.5,2998.4,4.9318]
[1764721251448,0.00499667,2998.7,2998.6,1.72399]
[1764721252444,0.00854671,2998.7,2998.6,1.72399]
[1764721255857,0.00854671,2998.7,2998.6,14.91999]
[1764721256658,0.00854671,2998.7,2998.6,1.72399]
[1764721257354,0.00854671,2998.7,2998.6,3.51837265]
[1764721259962,0.78834671,2998.7,2998.6,3.51837265]
[1764721260161,1.55334671,2998.7,2998.6,14.91899]
[1764721260462,0.78834671,2998.7,2998.6,16.71337265]
[1764721261162,0.78834671,2998.7,2998.6,1.72399]
[1764721261363,1.55334671,2998.7,2998.6,1.72399]
[1764721261557,0.00854671,2998.7,2998.6,1.72399]
[1764721261862,4.7526,2999.1,2999.0,1.5573]
[1764721262056,4.7526,2999.1,2999.0,0.7878]
[1764721262254,3.2078,2999.1,2999.0,2.0078]
[1764721262658,3.21067097,2999.1,2999.0,2.17447]
[1764721262963,4.78177097,2999.1,2999.0,2.17447]
[1764721263165,4.78177097,2999.1,2999.0,1.72397]
[1764721264866,1.57397097,2999.1,2999.0,1.72397]
[1764721265863,0.78267097,2999.1,2999.0,2.20017]
[1764721266767,1.57397097,2999.1,2999.0,1.72397]
[1764721268067,0.78267097,2999.1,2999.0,2.20017]
[1764721268267,0.00287097,2999.1,2999.0,2.20017]
[1764721269268,0.00287097,2999.1,2999.0,5.40797]
[1764721270169,3.2078,2999.7,2999.6,1.5098]
[1764721270667,3.03607063,3000.2,2999.9,1.5098]
[1764721270668,4.7878,3000.0,2999.9,1.5098]
[1764721270865,5.2676,3000.0,2999.9,0.7552]
[1764721271360,2.06398523,3000.0,2999.9,0.7552]
[1764721271559,2.06398523,3000.0,2999.9,1.5098]
[1764721273568,1.58418523,3000.0,2999.9,1.5098]
[1764721274370,2.06398523,3000.0,2999.9,1.5098]
[1764721275860,1.58,2999.4,2999.3,3.2078]
[1764721276061,1.58,2998.8,2998.7,3.2078]
[1764721276263,1.58,2998.5,2998.4,3.963]
[1764721276563,2.0598,2998.5,2998.4,3.2078]
[1764721277165,2.0598,2998.5,2998.4,4.7176]
[1764721277468,2.0598,2998.5,2998.2,0.00499667]
[1764721277469,1.58,2998.3,2998.2,0.00499667]
[1764721277975,1.58,2998.3,2998.2,0.76019667]
[1764721278970,1.58,2998.3,2998.2,1.51479667]
[1764721280169,1.58,2998.3,2998.2,0.00499667]
[1764721280369,1.58,2998.3,2998.2,1.51479667]
[1764721281466,1.58,2998.3,2998.2,0.76019667]
[1764721283276,1.58,2998.3,2998.2,1.51479667]
[1764721283572,0.00499667,2998.5,2998.4,1.5098]
[1764721283774,0.79369667,2998.5,2998.4,1.5098]
[1764721283971,0.00499667,2998.5,2998.4,1.5098]
[1764721285575,0.79369667,2998.5,2998.4,1.5098]
[1764721285971,0.00499667,2998.5,2998.4,1.5098]
[1764721286477,0.00499667,2998.5,2998.4,1.6765]
[1764721287073,3.6876,2999.0,2998.9,0.7552]
[1764721287074,5.2676,2999.0,2998.9,0.7552]
[1764721287274,5.2676,2999.0,2998.9,1.5098]
[1764721288174,0.7887,2998.7,2998.6,1.67649]
[1764721288376,4.7878,2999.0,2998.9,1.5098]
[1764721289779,1.58,2999.0,2998.9,1.5098]
[1764721290579,0.7887,2999.0,2998.9,1.5098]
[1764721290781,1.58,2999.0,2998.9,0.7552]
[1764721291178,2.0598,2999.0,2998.9,0.7552]
[1764721291478,1.58,2998.8,2998.7,1.67649]
[1764721292572,1.58,2998.8,2998.7,0.92189]
[1764721292773,1.58,2998.8,2998.7,1.67649]
[1764721293985,1.5091,2998.6,2998.5,3.2078]
[1764721294389,1.5091,2998.6,2998.5,3.9928]
[1764721295685,1.5091,2998.6,2998.5,3.2078]
[1764721296480,1.5317,2998.3,2998.2,0.00499667]
[1764721296786,1.5317,2998.3,2998.2,0.74219667]
[1764721298081,1.5317,2998.3,2998.2,0.00499667]
[1764721299682,3.6595,2998.5,2997.5,4.11175]
[1764721299683,1.5317,2997.6,2997.5,4.11175]
[1764721299987,1.9834,2997.5,2997.4,0.7372]
[1764721300690,1.98719999,2997.5,2997.4,1.5304762]
[1764721300881,1.98719999,2997.5,2997.4,0.7403762]
[1764721301489,1.98719999,2997.5,2997.4,0.0031762]
[1764721302290,1.5317,2997.3,2997.2,0.00499667]
[1764721302696,1.5317,2997.3,2997.2,0.74219667]
[1764721303089,1.5317,2997.3,2997.2,1.53229667]
[1764721303396,1.5317,2997.3,2997.2,1.53576342]
[1764721303587,0.00379999,2997.5,2997.4,0.7372]
[1764721303795,0.00379999,2997.5,2997.4,1.5273]
[1764721304091,0.78899999,2997.5,2997.4,1.5273]
[1764721304494,1.53549999,2997.5,2997.4,1.5273]
[1764721304793,1.53549999,2997.5,2997.2,0.74566342]
[1764721304794,1.5317,2997.3,2997.2,0.74566342]
[1764721304993,3.66329999,2997.5,2997.4,1.5273]
[1764721304994,5.19499999,2997.5,2997.4,1.5273]
[1764721305185,0.00379999,2997.5,2997.4,1.5273]
[1764721305586,0.78899999,2997.5,2997.4,1.5273]
[1764721307291,0.00379999,2997.5,2997.4,1.69406]
[1764721307491,0.78899999,2997.5,2997.4,1.69406]
[1764721307698,1.98719999,2997.5,2997.4,1.69406]
[1764721307896,1.98719999,2997.5,2997.4,0.90396]
[1764721308198,1.98719999,2997.5,2997.4,1.69406]
[1764721308400,1.98719999,2997.5,2997.4,0.90396]
[1764721308692,1.53549999,2997.5,2997.4,1.69406]
[1764721309797,0.78899999,2997.5,2997.4,1.69406]
[1764721310094,1.53549999,2997.5,2997.4,1.69406]
[1764721311203,0.78899999,2997.5,2997.4,1.69406]
[1764721312295,0.00379999,2997.5,2997.4,1.69406]
[1764721312499,0.00499667,2997.7,2997.6,1.69405]
[1764721312700,0.00499667,2997.7,2997.6,4.90185]
[1764721313496,0.00926739,2997.7,2997.6,4.90185]
[1764721316889,7.77557063,2998.8,2998.7,0.7901]
[1764721317101,7.77557063,2998.8,2998.1,3.37452]
[1764721317297,0.7852,2998.2,2998.1,4.11172]
[1764721317493,1.5317,2998.2,2998.1,4.90182]
[1764721317901,1.53541983,2998.2,2998.1,4.90182]
[1764721318305,0.78891983,2998.2,2998.1,4.90182]
[1764721318706,0.78891983,2998.2,2998.1,1.69402]
[1764721318906,1.53541983,2998.2,2998.1,1.69402]
[1764721319109,0.78891983,2998.2,2998.1,1.69402]
[1764721320005,1.53541983,2998.2,2998.1,1.69402]
[1764721321093,1.53541983,2998.2,2998.1,0.16672]
[1764721321493,1.53541983,2998.2,2998.1,0.90392]
[1764721321902,1.53541983,2998.2,2998.1,1.69402]
[1764721322101,0.00371983,2998.2,2998.1,1.69402]
[1764721322501,1.53541983,2998.2,2998.1,0.16672]
[1764721322908,1.5221,2998.0,2997.9,3.2078]
[1764721323099,1.4894,2997.6,2997.4,1.79096674]
[1764721323306,1.4894,2997.3,2997.2,4.68826342]
[1764721323501,0.7525,2997.5,2997.4,1.472]
[1764721323907,0.7525,2997.5,2997.4,1.63876]
[1764721324109,0.7525,2997.5,2997.4,0.16676]
[1764721324110,1.9569,2997.5,2997.4,0.16676]
[1764721324312,1.9569,2997.5,2997.4,1.63876]
[1764721324512,1.4894,2997.5,2997.4,1.63876]
[1764721325113,1.9569,2997.5,2997.4,0.16676]
[1764721325711,1.4894,2997.5,2997.4,1.63876]
[1764721325915,1.9569,2998.0,2997.5,0.4789]
[1764721326216,1.4894,2997.7,2997.6,1.63875]
[1764721326416,1.4894,2997.7,2997.6,0.90505]
[1764721326618,1.4894,2997.7,2997.6,0.16675]
[1764721327015,1.4894,2997.7,2997.6,1.63875]
[1764721327212,1.4894,2998.0,2997.9,1.472]
[1764721327713,1.9569,2998.0,2997.9,0.7383]
[1764721328104,1.4894,2997.7,2997.6,0.90505]
[1764721328414,1.4894,2997.7,2997.6,0.16675]
[1764721328608,1.4894,2997.7,2997.6,1.63875]
[1764721330918,1.9569,2998.0,2997.9,1.472]
[1764721331218,1.9569,2998.0,2997.9,0.7383]
[1764721331819,1.4894,2997.7,2997.6,1.63875]
[1764721332507,1.4894,2997.6,2997.5,3.2078]
[1764721332818,1.4894,2997.3,2997.2,3.95456342]
[1764721333320,1.4894,2997.3,2997.2,3.21626342]
[1764721334933,1.4894,2997.3,2997.2,0.00846342]
[1764721335234,4.6972,2997.3,2997.2,0.7383]
[1764721335434,0.4675,2997.5,2996.9,4.6798]
[1764721335435,1.4894,2997.0,2996.9,4.6798]
[1764721335628,1.4894,2997.0,2996.9,1.472]
[1764721336126,1.4894,2997.0,2996.9,1.47463105]
[1764721336636,1.9569,2997.0,2996.9,0.74093105]
[1764721336830,1.9569,2997.0,2996.9,1.47463105]
[1764721337528,1.9569,2997.0,2996.9,0.74093105]
[1764721337727,1.9569,2997.0,2996.9,1.47463105]
[1764721338938,1.4894,2997.0,2996.9,1.47463105]
[1764721339636,1.9569,2997.0,2996.9,0.00263105]
[1764721340040,1.9569,2997.0,2996.9,0.74093105]
[1764721340736,1.9569,2997.0,2996.9,0.00263105]
[1764721341644,3.2078,2997.3,2997.2,1.472]
[1764721343040,1.9569,2998.0,2997.6,0.16675]
[1764721343239,1.4894,2997.7,2997.6,0.16675]
[1764721343441,1.4894,2997.7,2997.6,3.37455]
[1764721344145,0.7525,2997.7,2997.6,3.37455]
[1764721344742,0.4675,2998.0,2997.6,3.37455]
[1764721344934,1.9569,2998.0,2997.9,3.2078]
[1764721348434,1.9569,2998.0,2997.6,0.16675]
[1764721348635,1.4894,2997.7,2997.6,3.37455]
[1764721349340,1.4894,2997.7,2997.6,3.2078]
[1764721352847,1.2571,2998.0,2997.6,3.2078]
[1764721353749,0.7896,2997.7,2997.6,3.2078]
[1764721354046,1.5744,2997.7,2997.6,3.2078]
[1764721355548,0.7896,2997.7,2997.6,3.2078]
[1764721356246,0.4675,2998.0,2997.6,3.37455]
[1764721356646,1.2235,2998.0,2997.6,3.37455]
[1764721357247,0.756,2997.7,2997.6,3.37455]
[1764721357446,1.4993,2997.7,2997.6,3.37455]
[1764721363652,1.4993,2997.7,2997.6,0.16675]
[1764721363842,1.4993,2997.7,2997.6,3.37455]
[1764721364446,1.4993,2997.7,2997.6,0.16675]
[1764721364651,1.4993,2997.7,2997.6,3.37455]
[1764721366247,1.4993,2997.7,2997.6,3.2078]
[1764721370048,0.756,2997.7,2997.6,3.2078]
[1764721370248,1.4993,2997.7,2997.6,3.2078]
[1764721373655,2.24405426,2997.7,2997.6,3.2078]
[1764721375161,1.4993,2997.7,2997.6,3.2078]
[1764721377453,0.756,2997.7,2997.6,3.37455]
[1764721377654,1.2235,2998.0,2997.6,3.37455]
[1764721377852,0.74394581,2997.9,2997.6,3.37455]
[1764721378054,0.4675,2998.0,2997.7,1.48338197]
[1764721378251,0.4675,2998.0,2997.9,0.16673]
[1764721379056,0.4675,2998.0,2997.9,3.37453]
[1764721379356,0.4675,2998.0,2997.9,5.16799601]
[1764721380255,0.00371983,2998.2,2998.1,0.16672]
[1764721380459,0.4459,2999.0,2998.7,0.16668]
[1764721380652,0.4459,2999.0,2998.9,4.69118197]
[1764721380855,1.2019,2999.0,2998.9,3.2078]
[1764721381161,1.9452,2999.0,2998.9,3.2078]
[1764721381360,1.94805898,2999.0,2998.9,3.2078]
[1764721381561,0.44875898,2999.0,2998.9,3.2078]
[1764721381767,1.20475898,2999.0,2998.9,3.2078]
[1764721382154,1.4993,2998.9,2998.8,1.79463807]
[1764721382354,0.756,2998.8,2998.7,0.17168509]
[1764721382563,1.20475898,2999.0,2998.7,0.17168509]
[1764721382754,1.94805898,2999.0,2998.9,3.2078]
[1764721383163,0.44875898,2999.0,2998.9,3.2078]
[1764721383758,0.00285898,2999.0,2998.9,3.37448]
[1764721383962,0.45195898,2999.0,2998.9,3.37448]
[1764721385158,1.19765898,2999.0,2998.9,3.37448]
[1764721385353,2.00865898,2999.0,2998.9,3.37448]
[1764721385558,1.19765898,2999.0,2998.9,3.37448]
[1764721386864,2.00865898,2999.0,2998.9,3.37448]
[1764721387366,2.00865898,2999.0,2998.9,3.2078]
[1764721388268,0.45195898,2999.0,2998.9,3.2078]
[1764721388468,2.00865898,2999.0,2998.9,3.2078]
[1764721389359,1.19765898,2999.0,2998.9,3.2078]
[1764721389769,2.00865898,2999.0,2998.9,3.2078]
[1764721394368,1.5567,2998.7,2998.6,3.10096049]
[1764721395963,40.8,2998.9,2998.1,3.37452]
[1764721395964,1.5567,2998.2,2998.1,3.37452]
[1764721398069,0.4491,2998.5,2998.1,3.37452]
[1764721398371,3.48802961,2999.0,2997.9,0.00500509]
[1764721398372,4.23372961,2999.0,2998.4,3.3745]
[1764721398575,2.0058,2998.5,2998.4,0.1667]
[1764721398766,1.5567,2998.2,2998.1,3.2078]
[1764721400773,1.1948,2998.0,2997.9,0.17173509]
[1764721400964,2.0058,2998.0,2997.9,0.17173509]
[1764721401167,2.0058,2998.0,2997.9,0.00500509]
[1764721402870,2.0058,2998.0,2996.9,0.16942105]
[1764721402871,1.1948,2997.5,2997.2,3.2078]
[1764721403278,2.0058,2997.5,2997.2,3.2078]
[1764721406093,1.5567,2997.2,2997.1,3.37957947]
[1764721406394,1.5567,2997.2,2997.1,0.17177947]
[1764721413693,1.5567,2997.2,2997.1,0.00499947]
[1764721413895,2.0076,2997.0,2996.9,0.00263105]
[1764721417198,5.2154,2997.0,2996.9,0.00263105]
[1764721425503,3.6937,2997.0,2996.9,0.00263105]
[1764721425806,5.2518,2997.0,2996.9,0.00263105]
[1764721433311,5.99667138,2997.0,2996.9,0.00263105]
[1764721436412,1.5581,2996.6,2996.5,1.79463807]
[1764721436717,1.5581,2995.9,2995.8,2.39751174]
[1764721436914,1.5581,2995.8,2995.7,2.39751174]
[1764721437225,1.5581,2995.7,2995.6,3.2078]
[1764721437515,1.56242792,2995.7,2995.6,3.21182591]
[1764721437908,0.00432792,2995.7,2995.6,3.37868591]
[1764721438108,2.05060509,2996.0,2995.6,9.37868591]
[1764721438413,2.05060509,2996.0,2995.8,0.16685]
[1764721438717,1.25570509,2996.0,2995.9,0.16684]
[1764721439218,1.25808198,2996.0,2995.9,0.16684]
[1764721439615,2.0456,2996.5,2996.3,0.16682]
[1764721439816,1.5581,2996.4,2996.3,0.16682]
[1764721440718,1.56180137,2996.4,2996.3,0.16682]
[1764721441924,0.76690137,2996.4,2996.3,0.16682]
[1764721443024,1.56180137,2996.4,2996.3,0.16682]
[1764721445919,2.0516,2996.0,2995.9,3.2078]
[1764721446317,0.7841,2995.8,2995.7,2.56936683]
[1764721447625,0.4746,2996.0,2995.9,0.16684]
[1764721449026,0.4746,2996.0,2995.9,3.37464]
[1764721450524,0.00370137,2996.4,2996.3,0.16682]
[1764721450525,1.58070137,2996.4,2996.3,0.16682]
[1764721451726,0.78780137,2996.4,2996.3,1.61439572]
[1764721452025,1.58070137,2996.4,2996.3,0.16682]
[1764721452623,0.78780137,2996.4,2996.3,0.16682]
[1764721452930,1.58070137,2996.4,2996.3,0.16682]
[1764721453332,0.78780137,2996.4,2996.3,0.16682]
[1764721453536,0.00370137,2996.4,2996.3,0.16682]
[1764721453722,0.00500509,2996.6,2996.5,0.16681]
[1764721454027,0.78910509,2996.6,2996.5,0.16681]
[1764721454623,0.78910509,2996.6,2996.5,3.37461]
[1764721454828,0.00747451,2996.6,2996.5,3.37461]
[1764721455331,1.27,2997.0,2996.9,0.16679]
[1764721455527,1.27,2997.0,2996.9,1.61436572]
[1764721456138,1.27,2997.0,2996.9,0.16679]
[1764721456139,2.0629,2997.0,2996.9,0.16679]
[1764721456427,2.0658996,2997.0,2996.9,0.16679]
[1764721468845,2.0516,2996.5,2996.4,3.2078]
[1764721469444,2.0516,2996.5,2996.3,0.16682]
[1764721469445,1.577,2996.4,2996.3,0.16682]
[1764721475049,1.5569,2995.9,2995.8,3.2078]
[1764721479250,1.5569,2995.9,2995.8,2.88717342]
[1764721479447,1.5569,2995.8,2995.7,0.00500509]
[1764721479646,2.30929047,2995.8,2995.7,0.00500509]
[1764721481251,1.5569,2995.8,2995.7,0.00500509]
[1764721487470,0.7495,2995.8,2995.7,0.00500509]
[1764721487668,1.5569,2995.8,2995.7,0.00500509]
[1764721489768,1.5569,2995.8,2995.7,0.17185509]
[1764721490174,3.2078,2995.9,2995.8,0.16685]
[1764721490370,3.2078,2995.9,2995.8,1.65126871]
[1764721490671,4.7647,2995.9,2995.8,1.65126871]
[1764721493375,1.5569,2995.9,2995.8,1.65126871]
[1764721493771,0.4566,2996.0,2995.9,0.16684]
[1764721494169,4.7647,2996.2,2996.1,0.1205]
[1764721494475,2.0135,2996.0,2995.9,0.40784]
[1764721494973,1.2061,2996.0,2995.9,0.40784]
[1764721495168,2.0135,2996.0,2995.9,0.40784]
[1764721495876,1.2061,2996.0,2995.9,0.40784]
[1764721496273,1.2061,2996.0,2995.9,2.20231951]
[1764721497377,2.0135,2996.0,2995.9,2.20231951]
[1764721497579,2.0135,2996.0,2995.9,0.40784]
[1764721497779,2.0135,2996.0,2995.9,0.16684]
[1764721503976,1.5953,2995.9,2995.8,1.79447951]
[1764721504177,3.6644,2996.0,2995.7,0.00500509]
[1764721504178,1.5953,2995.8,2995.7,0.00500509]
[1764721504373,1.5953,2995.8,2995.7,0.57700509]
[1764721504578,0.4566,2996.0,2995.9,0.572]
[1764721504874,2.0519,2996.0,2995.9,2.05641871]
[1764721505079,2.0519,2996.0,2995.9,1.77041871]
[1764721505479,2.0519,2996.0,2995.9,1.96325173]
[1764721507283,2.0519,2996.0,2995.9,2.24925173]
[1764721507981,2.0519,2996.0,2995.9,4.01967044]
[1764721508373,2.0519,2996.0,2995.9,3.73367044]
[1764721509286,5.2597,2996.0,2995.9,1.96325173]
[1764721509483,5.2597,2996.0,2995.8,1.79641173]
[1764721509678,1.5953,2995.8,2995.7,0.00500509]
[1764721510281,1.5953,2995.8,2995.7,0.17185509]
[1764721512683,1.5953,2995.8,2995.7,0.00500509]
[1764721513886,0.4494,2995.5,2995.4,1.79641173]
[1764721514195,2.0447,2995.5,2995.4,1.79641173]
[1764721514889,2.0447,2995.5,2995.4,1.7988962]
[1764721515087,2.0447,2995.5,2995.4,1.9657662]
[1764721515893,2.0447,2995.5,2995.4,0.16935447]
[1764721520695,2.0447,2995.5,2995.4,0.75935447]
[1764721520993,2.0447,2995.5,2995.4,2.5557662]
[1764721521189,1.5953,2995.4,2995.2,1.80141682]
[1764721521404,1.5953,2995.3,2995.2,0.00500509]
[1764721522301,1.5953,2995.3,2995.2,0.00792738]
[1764721523001,1.5953,2995.3,2995.2,2.738e-05]
[1764721525199,1.5953,2995.3,2995.2,0.30542738]
[1764721525399,3.03607063,2995.4,2995.2,2.738e-05]
[1764721532412,3.03607063,2995.4,2995.2,0.47230738]
[1764721532413,1.5953,2995.3,2995.2,0.47230738]
[1764721532811,0.7928,2995.3,2995.2,0.77770738]
[1764721533008,4.58907063,2995.4,2995.3,0.78068]
[1764721533407,4.58907063,2995.4,2995.3,0.47378]
[1764721533808,3.03607063,2995.4,2995.2,2.738e-05]
[1764721535111,3.6572,2995.5,2995.2,2.738e-05]
[1764721539509,6.69327063,2995.5,2995.2,2.738e-05]
[1764721539827,1.5495,2994.8,2994.7,3.911e-05]
[1764721540021,1.5495,2994.8,2994.6,0.16692]
[1764721540222,4.7573,2994.7,2994.6,0.16692]
[1764721540611,4.7603448,2994.7,2994.6,0.17050489]
[1764721543228,4.7603448,2994.7,2994.6,0.00358489]
[1764721548437,1.5495,2994.2,2994.1,0.16694]
[1764721548746,1.5495,2993.6,2993.5,0.90328]
[1764721549035,1.5495,2993.6,2993.5,1.70898]
[1764721549236,1.5495,2993.6,2993.5,1.71301787]
[1764721550628,1.5495,2993.6,2993.5,0.90731787]
[1764721552140,1.5495,2993.6,2993.5,0.17101787]
[1764721553332,1.5495,2993.6,2993.5,0.90731787]
[1764721553526,1.5495,2993.6,2993.5,0.17101787]
[1764721554930,1.5495,2993.6,2993.5,0.90731787]
[1764721555433,1.5495,2993.6,2993.5,0.17101787]
[1764721555634,1.5495,2992.7,2992.6,1.542]
[1764721555935,0.4856,2993.0,2992.9,1.542]
[1764721555936,1.5495,2993.0,2992.9,1.542]
[1764721556143,2.0351,2993.0,2992.9,0.7363]
[1764721556341,2.0351,2993.0,2992.9,1.542]
[1764721556541,2.0351,2993.0,2992.9,1.54541425]
[1764721557244,0.4856,2993.0,2992.2,4.91685]
[1764721557443,4.7573,2992.7,2992.6,1.542]
[1764721557747,1.5495,2992.4,2992.3,1.70904]
[1764721557939,1.5495,2992.4,2992.3,0.16704]
[1764721558142,1.5495,2992.4,2992.3,0.90334]
[1764721558341,1.55281939,2992.4,2992.3,0.90596732]
[1764721558635,4.76061939,2992.4,2992.3,0.90596732]
[1764721559038,0.78881939,2992.4,2992.3,1.71166732]
[1764721559239,1.55281939,2992.4,2992.3,1.71166732]
[1764721559748,1.55281939,2992.4,2992.3,0.90596732]
[1764721559941,1.55281939,2992.4,2992.3,0.00262732]
[1764721559942,4.76061939,2992.4,2992.3,0.00262732]
[1764721560956,1.5495,2991.1,2991.0,1.70779041]
[1764721561637,1.5495,2991.1,2991.0,0.90209041]
[1764721561838,1.5495,2991.1,2991.0,1.71163265]
[1764721562039,1.55451387,2991.3,2991.2,1.542]
[1764721562238,1.5495,2991.1,2991.0,0.90593265]
[1764721562449,1.5495,2991.1,2991.0,1.71163265]
[1764721563746,4.7573,2991.1,2991.0,0.16963265]
[1764721565749,4.7573,2991.1,2991.0,0.90633265]
[1764721565944,4.7573,2991.1,2991.0,0.16963265]
[1764721568947,1.5544,2990.2,2990.1,0.16717]
[1764721569146,1.5544,2990.2,2989.5,0.3018]
[1764721569147,4.7622,2990.2,2989.5,0.3018]
[1764721569541,1.5544,2989.7,2989.6,1.68489]
[1764721569747,2.0181,2989.5,2989.4,3.9445]
[1764721569950,2.02051845,2989.5,2989.4,3.94810409]
[1764721570140,2.02051845,2989.5,2989.4,3.21140409]
[1764721570344,5.22831845,2989.5,2989.4,1.51770409]
[1764721570546,0.00241845,2989.5,2989.4,1.51770409]
[1764721570745,0.75011845,2989.5,2989.4,1.51770409]
[1764721571153,0.00241845,2989.5,2989.4,7.68491409]
[1764721571347,3.2078,2990.2,2990.1,1.5177]
[1764721572049,4.7622,2990.2,2990.1,1.68487]
[1764721572250,4.76584594,2990.2,2990.1,1.68487]
[1764721572451,3.21144594,2990.2,2990.1,1.68487]
[1764721572641,0.00364594,2990.2,2990.1,4.89267]
[1764721572844,0.75271387,2990.4,2990.3,1.5177]
[1764721573048,1.55941387,2990.4,2990.3,1.5177]
[1764721573248,0.75271387,2990.4,2990.3,1.5177]
[1764721573448,0.00501387,2990.4,2990.3,1.68486]
[1764721573846,0.00764059,2990.4,2990.3,1.68486]
[1764721574047,0.75534059,2990.4,2990.3,1.68486]
[1764721574349,0.00764059,2990.4,2990.3,1.68486]
[1764721574750,4.7622,2991.1,2991.0,1.5177]
[1764721574954,1.5544,2990.5,2990.4,1.5177]
[1764721575156,2.0181,2990.5,2990.4,0.7367]
[1764721575456,2.0181,2990.5,2990.0,0.60967]
[1764721575457,1.5544,2990.1,2990.0,1.68487]
[1764721575850,0.75161164,2990.1,2990.0,1.68487]
[1764721576055,0.00391164,2990.1,2990.0,2.12737]
[1764721576355,0.75161164,2990.1,2990.0,2.12737]
[1764721576745,0.75161164,2990.1,2990.0,1.68487]
[1764721576954,1.55831164,2990.1,2990.0,1.68487]
[1764721577258,0.75161164,2990.1,2990.0,2.12737]
[1764721577555,4.76611164,2990.1,2990.0,0.16717]
[1764721578152,1.2704,2990.0,2989.3,4.11171]
[1764721578461,0.4637,2989.5,2989.3,3.37501]
[1764721578664,0.4637,2989.5,2989.3,0.16721]
[1764721578855,0.4637,2989.5,2989.0,4.7255]
[1764721579360,0.4637,2989.5,2989.2,0.00501387]
[1764721581154,0.4637,2989.5,2989.2,0.74171387]
[1764721581362,0.4637,2989.5,2989.2,1.52271387]
[1764721581665,0.4637,2989.5,2989.2,0.00501387]
[1764721582056,3.2078,2989.6,2989.4,1.51770409]
[1764721582257,4.7622,2989.6,2989.5,0.7367]
[1764721582864,0.4637,2990.0,2989.5,2.1274]
[1764721583062,0.7477,2989.6,2989.5,2.1274]